{"text_format":"1","workbook":"xlsx","n_sheets":3,"sheets":["Relación de gastos","Relación de ingresos","Gastos e ingresos"],"not_rendered":{"charts":0,"images":3,"macros":1,"external_links":0,"defined_names":8,"comments":3,"pivot_tables":0},"unopened":[],"bounds":{"document_bytes":16777216,"sheet_cells":100000,"rows_first":2000,"rows_last":500,"rows_between":2000,"halvings":0,"cell_chars":16384,"cell_head_chars":4096},"cells_cut":0,"cells_raw":0,"read":"whole","date_system":"1900"}

{"sheet":"Relación de gastos","index":0,"n_rows":176,"n_cols":10,"rows_kept":176,"cut":false,"hidden":false,"merged":[[173,0,173,10],[174,0,174,10],[175,0,175,10],[153,0,153,10],[154,0,154,10],[155,0,155,10],[156,0,156,10],[157,0,157,10],[158,0,158,10],[159,0,159,10],[160,0,160,10],[161,0,161,10],[162,0,162,10],[163,0,163,10],[164,0,164,10],[165,0,165,10],[166,0,166,10],[167,0,167,10],[168,0,168,10],[169,0,169,10],[170,0,170,10],[171,0,171,10],[172,0,172,10],[65,9,65,10],[20,9,20,10],[21,0,21,6],[21,9,21,10],[22,0,22,10],[23,9,23,10],[24,9,24,10],[25,9,25,10],[31,9,31,10],[33,0,33,6],[39,0,39,6],[28,0,28,10],[47,9,47,10],[57,9,57,10],[56,9,56,10],[55,9,55,10],[54,9,54,10],[53,9,53,10],[51,9,51,10],[50,9,50,10],[48,9,48,10],[138,0,138,2],[138,3,138,6],[138,9,138,10],[139,0,139,5],[139,9,139,10],[128,9,128,10],[129,9,129,10],[130,9,130,10],[131,0,131,6],[131,9,131,10],[132,0,132,10],[133,9,133,10],[134,9,134,10],[135,9,135,10],[122,9,122,10],[123,9,123,10],[124,9,124,10],[125,0,125,6],[125,9,125,10],[126,0,126,10],[127,9,127,10],[136,9,136,10],[112,9,112,10],[113,0,113,6],[113,9,113,10],[137,0,137,6],[137,9,137,10],[114,0,114,10],[115,9,115,10],[116,9,116,10],[117,9,117,10],[118,9,118,10],[119,0,119,6],[119,9,119,10],[120,0,120,10],[121,9,121,10],[104,9,104,10],[105,9,105,10],[106,9,106,10],[107,0,107,6],[107,9,107,10],[108,0,108,10],[109,9,109,10],[110,9,110,10],[111,9,111,10],[96,0,96,10],[97,9,97,10],[98,9,98,10],[99,9,99,10],[100,9,100,10],[101,0,101,6],[101,9,101,10],[102,0,102,10],[103,9,103,10],[89,0,89,6],[89,9,89,10],[91,9,91,10],[92,9,92,10],[93,9,93,10],[94,9,94,10],[90,0,90,10],[95,0,95,6],[95,9,95,10],[67,9,67,10],[85,9,85,10],[86,9,86,10],[79,9,79,10],[84,0,84,10],[81,9,81,10],[82,9,82,10],[87,9,87,10],[88,9,88,10],[3,7,3,8],[46,0,46,10],[76,0,76,2],[76,3,76,6],[76,9,76,10],[78,0,78,10],[83,0,83,6],[83,9,83,10],[75,9,75,10],[62,9,62,10],[61,9,61,10],[70,0,70,10],[75,0,75,6],[71,9,71,10],[74,9,74,10],[49,9,49,10],[73,9,73,10],[64,0,64,10],[69,0,69,6],[63,0,63,6],[57,0,57,6],[52,0,52,10],[58,0,58,10],[51,0,51,6],[9,0,9,10],[66,9,66,10],[63,9,63,10],[59,9,59,10],[69,9,69,10],[68,9,68,10],[60,9,60,10],[3,0,3,1],[7,1,8,1],[7,0,8,0],[6,0,6,4],[17,9,17,10],[18,9,18,10],[19,9,19,10],[26,9,26,10],[27,0,27,6],[27,9,27,10],[12,9,12,10],[7,9,7,10],[8,9,8,10],[10,0,10,10],[14,9,14,10],[7,3,7,4],[45,0,45,6],[35,9,35,10],[15,9,15,10],[41,9,41,10],[39,9,39,10],[38,9,38,10],[37,9,37,10],[36,9,36,10],[16,0,16,10],[30,9,30,10],[29,9,29,10],[33,9,33,10],[32,9,32,10],[34,0,34,10],[40,0,40,10],[77,0,77,10],[143,0,143,10],[145,0,145,10],[146,0,146,10],[147,0,147,10],[148,0,148,10],[0,0,0,10],[4,0,4,1],[15,0,15,6],[2,2,2,3],[3,2,3,3],[4,2,4,3],[11,9,11,10],[2,0,2,1],[45,9,45,10],[2,4,2,6],[3,4,3,6],[4,4,4,6],[44,9,44,10],[43,9,43,10],[42,9,42,10],[7,2,8,2],[2,7,2,8],[4,7,4,8]]}
["Relación clasificada de todos los gastos realizados para la ejecución de la actividad subvencionada"]
[]
["Persona física/jurídica beneficiaria: ",null,null,null,"Importe del coste total del proyecto:",null,null,null,null,"euros"]
["Código de subvención:",null,null,null,"Importe de la subvención otorgada:",null,null,null,null,"euros"]
["Nombre del proyecto subvencionado:",null,null,null,"Periodo de ejecución del proyecto subvencionado:",null,null,null,null,"a"]
[]
["Gastos del proyecto/actividad/servicio subvencionado (*)"]
["Núm. De orden (0)","Número de documento: justificantes gasto personal (1), factura o recibo/ticket(2)","Concepto de la factura /\ndocumento probatorio equivalente","Emisor/a de la factura",null,"Data de emisión","Importe total de la factura","Importe imputable (dedicado) al proyecto (3)","Importe imputable a la subvención municipal (4)","Observaciones"]
[null,null,null,"NIF","Nombre","dd/mm/aaaa","euros","euros","euros"]
["GASTOS DIRECTOS (Aquellos que se identifican directamente con el proyecto)"]
["D1. Retribuciones y seguridad social (régimen general o régimen de autónomos) del personal propio vinculado/da al proyecto (máximo 40% subvención)"]
[]
[]
[]
[]
["Subtotal D1",null,null,null,null,null,null,{"$f":"SUM(H12:H15)","v":0},{"$f":"SUM(I12:I15)","v":0},{"$f":"IF(I16<=H4*0.4,\"\",\"Error: D1 no puede superar el 40% de la subvención\")","v":""}]
["D2.  Trabajos realizados por profesionales y empresas externas directamente vinculadas al proyecto subvencionado"]
[]
[]
[]
[]
["Subtotal D2",null,null,null,null,null,null,{"$f":"SUM(H18:H21)","v":0},{"$f":"SUM(I18:I21)","v":0}]
["D3.  Alquiler de bienes muebles/ inmuebles directamente vinculados al proyecto subvencionable (máximo 25% subvención en caso de inmuebles para un nuevo espacio)"]
[]
[]
[]
[]
["Subtotal D3",null,null,null,null,null,null,{"$f":"SUM(H24:H27)","v":0},{"$f":"SUM(I24:I27)","v":0},{"$f":"IF(I28<=H4*0.25,\"\",\"Error: D3 no puede superar el 25% de la subvención\")","v":""}]
["D4. Adquisición de materiales y bienes consumibles íntegramente imputables al proyecto"]
[]
[]
[]
[]
["Subtotal D4",null,null,null,null,null,null,{"$f":"SUM(H30:H33)","v":0},{"$f":"SUM(I30:I33)","v":0}]
["D5. Transporte – mensajería imputables al proyecto"]
[]
[]
[]
[]
["Subtotal D5",null,null,null,null,null,null,{"$f":"SUM(H36:H39)","v":0},{"$f":"SUM(I36:I39)","v":0}]
["D6. Publicidad y propaganda de las actividades directamente vinculadas al proyecto subvencionado"]
[]
[]
[]
[]
["Subtotal D6",null,null,null,null,null,null,{"$f":"SUM(H42:H45)","v":0},{"$f":"SUM(I42:I45)","v":0}]
["D7. Alojamiento y dietas, del personal contratado y voluntario, vinculados al proyecto"]
[]
[]
[]
[]
["Subtotal D7",null,null,null,null,null,null,{"$f":"SUM(H48:H51)","v":0},{"$f":"SUM(I48:I51)","v":0}]
["D8.  Ayudas al transporte para los/las participantes de los proyectos en caso de que sea necesario de forma justificada"]
[]
[]
[]
[]
["Subtotal D8",null,null,null,null,null,null,{"$f":"SUM(H54:H57)","v":0},{"$f":"SUM(I54:I57)","v":0}]
["D9.  Viajes y desplazamientos imputables a las actividades del proyecto"]
[]
[]
[]
[]
["Subtotal D9",null,null,null,null,null,null,{"$f":"SUM(H60:H63)","v":0},{"$f":"SUM(I60:I63)","v":0}]
["D10. Tributos, cuando sean abonados directamente por la persona jurídica o física beneficiaria"]
[]
[]
[]
[]
["Subtotal D10",null,null,null,null,null,null,{"$f":"SUM(H66:H69)","v":0},{"$f":"SUM(I66:I69)","v":0}]
["D11.  Otros gastos que de forma justificada puedan imputarse directamente al proyecto subvencionable"]
[]
[]
[]
[]
["Subtotal D11",null,null,null,null,null,null,{"$f":"SUM(H72:H75)","v":0},{"$f":"SUM(I72:I75)","v":0}]
["TOTAL GASTOS DIRECTOS",null,null,"TOTAL GASTOS DIRECTOS",null,null,null,{"$f":"H16+H22+H28+H34+H40+H46+H52+H58+H64+H70+H76","v":0},{"$f":"I16+I22+I28+I34+I40+I46+I52+I58+I64+I70+I76","v":0}]
["GASTOS INDIRECTOS (no se pueden asignar directamente al proyecto sin utilizar algún % de asignación) (máximo 10% subvención)"]
["I1.  Personal de apoyo al proyecto subvencionado (nóminas y seguridad social)"]
[]
[]
[]
[]
["Subtotal I1",null,null,null,null,null,null,{"$f":"SUM(H80:H83)","v":0},{"$f":"SUM(I80:I83)","v":0}]
["I2.  Seguros"]
[]
[]
[]
[]
["Subtotal I2",null,null,null,null,null,null,{"$f":"SUM(H86:H89)","v":0},{"$f":"SUM(I86:I89)","v":0}]
["I.3 Amortización"]
[]
[]
[]
[]
["Subtotal I3",null,null,null,null,null,null,{"$f":"SUM(H92:H95)","v":0},{"$f":"SUM(I92:I95)","v":0}]
["I.4  Alquiler de bienes inmuebles"]
[]
[]
[]
[]
["Subtotal I4",null,null,null,null,null,null,{"$f":"SUM(H98:H101)","v":0},{"$f":"SUM(I98:I101)","v":0}]
["I.5 Adquisición de materiales y bienes consumibles parcialmente imputables al proyecto subvencionado"]
[]
[]
[]
[]
["Subtotal I5",null,null,null,null,null,null,{"$f":"SUM(H104:H107)","v":0},{"$f":"SUM(I104:I107)","v":0}]
["I.6  Mantenimiento de edificios y/o instalaciones"]
[]
[]
[]
[]
["Subtotal I6",null,null,null,null,null,null,{"$f":"SUM(H110:H113)","v":0},{"$f":"SUM(I110:I113)","v":0}]
["I.7  Comunicaciones (teléfono, correos, conexión a internet)"]
[]
[]
[]
[]
["Subtotal I7",null,null,null,null,null,null,{"$f":"SUM(H116:H119)","v":0},{"$f":"SUM(I116:I119)","v":0}]
["I.8  Gastos financieros"]
[]
[]
[]
[]
["Subtotal I8",null,null,null,null,null,null,{"$f":"SUM(H122:H125)","v":0},{"$f":"SUM(I122:I125)","v":0}]
["I.9  Suministros"]
[]
[]
[]
[]
["Subtotal I9",null,null,null,null,null,null,{"$f":"SUM(H128:H131)","v":0},{"$f":"SUM(I128:I131)","v":0}]
["I.10  Trabajo realizado por otras empresas, parcialmente imputables al proyecto subvencionado (limpieza, seguridad...)"]
[]
[]
[]
[]
["Subtotal I10",null,null,null,null,null,null,{"$f":"SUM(H134:H137)","v":0},{"$f":"SUM(I134:I137)","v":0}]
["TOTAL GASTOS INDIRECTOS",null,null,"TOTAL GASTOS INDIRECTOS",null,null,null,{"$f":"+H84+H90+H96+H102+H108+H114+H120+H126+H132+H138","v":0},{"$f":"+I84+I90+I96+I102+I108+I114+I120+I126+I132+I138","v":0},{"$f":"IF(I139<=H4*0.1,\"\",\"Error: Gastos indirectos no pueden superar el 10% de la subvención\")","v":""}]
["TOTAL GASTOS",null,null,null,null,null,"TOTAL",{"$f":"H77+H139","v":0},{"$f":"I77+I139","v":0}]
[]
[]
["Notas:"]
["(*) Se deben relacionar todos los gastos del proyecto/actividad/servicio subvencionado. En caso de que el número de filas de cada concepto sea insuficiente puede insertar líneas dentro del mismo concepto seleccionando una celda verde y haciendo clic sobre el botón de insertar línea."]
["(0) El número de orden debe ser correlativo empezando por D.1.1, D1.2, D.1.3, D2.4, etc."]
["(1) Respecto a los gastos de recursos humanos, puede ser subvencionable el coste total salarial mensual, que corresponde a la suma de la retribución bruta que aparece en la nómina del trabajador/a más la cuota de la empresa a la Seg. Social. Los gastos de personal se justifican con la nómina del trabajador/a acompañada de los correspondientes RLC y RNT (anteriores TC1 y TC2) de la TGSS y el modelo 111 del IRPF."]
["(2) En caso de que el documento justificativo del resto de gastos, no sea una factura, sino otro documento probatorio equivalente, como un recibo o justificante (como por dietas o transporte público), indíquelo en la columna \"observaciones\""]
["(3) En caso de que un justificante incluya conceptos que no tienen relación con el proyecto/actividad/servicio para el que se ha otorgado la subvención, aquí sólo se tiene que indicar la parte que realmente se ha dedicado al proyecto ."]
["(4) En esta columna debe indicarse el importe total o parcial de la factura que se imputa a la subvención recibida del Ayuntamiento de Barcelona. El total imputado, en esta columna, debe ser igual al importe de la subvención recibida."]
[]
["Pulsa el icono para generar un documento PDF del libro"]
[]
[]
["Modalidad Bb. Creación, desarrollo y fortalecimiento de ecosistemas cooperativos y clusters de ESS"]
["Submodalidad Bb1. Diseño y preparación"]
["1. La cuantía de la subvención otorgada no superará el 80% del gasto total del proyecto a subvencionar."]
["2. El importe máximo de subvención para esta submodalidad del ámbito temático de Reactivación: Intercooperación (Bb1) es 15.000 €.\nLas personas solicitantes deben escoger una u otra submodalidad (Bb1 o Bb2) en su solicitud de subvención: No es posible presentar a las dos."]
["3. En caso de que la solicitud presentada sobrepase el importe máximo, se considerará como importe solicitado el máximo de lo establecido en la convocatoria."]
["4. En esta modalidad se aceptará la imputación de gastos de personal propio y directamente vinculado al proyecto de las organizaciones participantes del acuerdo de colaboración."]
["5. Se limita con un máximo del 40% el importe de la subvención para gastos de personal propio asignado directamente al proyecto subvencionado (retribuciones y seguridad social - régimen general o autónomos-)."]
["6. Los gastos de alquiler de inmuebles se limitarán a un máximo del 25% si se trata de un nuevo espacio físico necesario para el desarrollo del proyecto subvencionable. En el caso de alquileres de inmuebles no relacionados directamente con el desarrollo del proyecto, estos gastos de alquiler se imputarán a los gastos indirectos con el límite establecido por éstos."]
["7. En esta submodalidad también son subvencionables los trabajos de los grupos cooperativos y los acuerdos de colaboración de las organizaciones agrupadas que diseñen proyectos para intentar obtener financiación de los fondos Next Generation de la Unión Europea (UE) o similares que puedan aparecer en el marco de los fondos públicos para la reactivación y transformación del modelo económico."]
["8. Esta submodalidad apoya a los trabajos de preparación y diseño durante la presente convocatoria 2023 para proyectos que se quieran desarrollar durante las anualidades 2024 y 2025. Se trabajará, en el posible apoyo financiero de estos proyectos de intercooperación, en el marco del Acuerdo y Estrategia #ESSBCN2030 y el nuevo PIESS 2021-2023."]
["9. Los proyectos de esta submodalidad tendrán que entregar a su finalización un producto, de acuerdo con el contenido establecido en la convocatoria de la subvención."]
["10. Son imputables en esta modalidad los gastos indirectos, detallados en el apartado 13.3. de las bases reguladoras; con un máximo del 10% del importe de la subvención.\nEl carácter subvencionable del gasto de amortización estará sujeto a las siguientes condiciones:\n> Que las subvenciones no hayan contribuido a la compra de los bienes.\n> Que la amortización se calcule de conformidad con las normas de contabilidad generalmente aceptadas.\n> Que el coste se refiera al período subvencionable.\n"]
["11. No se admitirá ninguna propuesta en esta submodalidad que no presente el acuerdo de colaboración por personas jurídicas por el proyecto presentado para recibir esta subvención."]
["12. Cuando se tenga que realizar gastos de más de 12.000 €, sin IVA, en el caso de prestaciones de servicios o entrega de bienes y por aquellos gastos de más de 30.000 €, sin IVA, en el caso de ejecución de obras, se tendrán que incorporar tres presupuestos solicitados y argumentar el motivo de la adjudicación en caso de no ser la propuesta más ventajosa económicamente."]
["13. No serán elegibles facturas de empresas emitidas entre las organizaciones participantes del acuerdo de colaboración."]
["14. En ningún caso se considerarán gastos subvencionables:\n> Los impuestos indirectos cuando sean susceptibles de recuperación o compensación.\n> Los gastos de inversión, incluidas las adquisiciones de bienes muebles.\n> Los gastos realizados con fecha anterior al inicio del proyecto y fecha posterior a la finalización del proyecto.\n> Otros gastos que se indiquen en la convocatoria."]
["15. La retribución de las personas contratadas en el marco del proyecto subvencionado no puede ser inferior al Salario Mínimo Interprofesional (SMI), ni a la estipulada en el correspondiente convenio o marco normativo de referencia (punto 7 de las bases 2023: requisitos de los proyectos )."]
["16. Los materiales producidos de difusión, estudios, informes o materiales didácticos utilizados, etc. en el caso de tratarse de gasto elegible de la subvención, tendrán que tener licencia Creative Commons -Compartir Igual- (share a like) y no podrá tener la condición -Sin Obras Derivadas- (no derivate Works)."]
["17. Los proyectos subvencionados deben fomentar actividades de interés público o social, las cuales deben ser gratuitas para las personas participantes o en ningún caso el precio debe suponer un obstáculo para su participación, buscando otras formas de acceso personas con dificultades económicas. En caso de que haya algún tipo de lucro, deberá revertir en las propias actividades subvencionadas."]
["18. El Ayuntamiento de Barcelona y sus entidades municipales en ningún caso subvencionarán el mismo proyecto, ejecutado durante el mismo período, por ningún otro procedimiento de concesión que no sea el regulado por las bases reguladoras."]
["19. El/la beneficiario/a no podrá alterar en ningún caso el destino de las subvenciones concedidas."]
["20. La organización designada como representante de la agrupación será plenamente responsable del proyecto ante el Ayuntamiento respecto al cumplimiento de las obligaciones establecidas en las bases reguladoras, sin perjuicio de la responsabilidad de las demás organizaciones socias de la agrupación, todo siéndole de aplicación los requisitos previstos en el punto 6.1 de las bases reguladoras."]
["21. En ningún caso podrán formar parte de la agrupación las organizaciones que hayan recibido otras subvenciones para la ejecución del propio proyecto de otras administraciones públicas."]

{"sheet":"Relación de ingresos","index":1,"n_rows":71,"n_cols":10,"rows_kept":71,"cut":false,"hidden":false,"merged":[[14,6,14,9],[28,6,28,9],[38,6,38,9],[37,6,37,9],[32,6,32,9],[19,6,19,9],[18,6,18,9],[16,6,16,9],[34,6,34,9],[43,6,43,9],[26,0,26,3],[50,6,50,9],[49,6,49,9],[48,6,48,9],[42,6,42,9],[40,6,40,9],[20,0,20,3],[45,0,45,9],[46,6,46,9],[26,6,26,9],[25,6,25,9],[24,6,24,9],[22,6,22,9],[36,6,36,9],[20,6,20,9],[30,6,30,9],[31,6,31,9],[27,0,27,9],[33,0,33,9],[39,0,39,9],[38,0,38,3],[32,0,32,3],[0,0,0,9],[9,0,9,9],[15,0,15,9],[21,0,21,9],[7,6,8,9],[10,6,10,9],[12,6,12,9],[7,0,8,0],[13,6,13,9],[3,2,3,3],[2,2,2,3],[6,0,6,3],[4,2,4,3],[7,2,7,3],[7,1,8,1],[14,0,14,3],[51,0,51,9],[57,0,57,9],[56,6,56,9],[44,0,44,3],[58,6,58,9],[56,0,56,3],[50,0,50,3],[54,6,54,9],[52,6,52,9],[44,6,44,9],[66,0,66,3],[65,0,65,3],[65,6,65,9],[64,6,64,9],[60,6,60,9],[66,6,66,9],[61,6,61,9],[62,6,62,9],[63,6,63,9]]}
["Detalle de todos los ingresos obtenidos y aportaciones del propio beneficiario para la ejecución de la actividad subvencionada"]
[]
[null,"Nombre de la persona física/jurídica beneficiaria:        ",{"$f":"IF('Relación de gastos'!C3:D3<>\"\",'Relación de gastos'!C3:D3,\"\")","v":""},null,"Importe del coste total del proyecto:",null,null,{"$f":"IF(+'Relación de gastos'!H3=\"\",\"\",+'Relación de gastos'!H3)","v":""},"euros"]
[null,"Código de subvención",{"$f":"IF('Relación de gastos'!C4:D4<>\"\",'Relación de gastos'!C4:D4,\"\")","v":""},null,"Importe de la subvención otorgada:",null,null,{"$f":"IF(+'Relación de gastos'!H4=\"\",\"\",+'Relación de gastos'!H4)","v":""},"euros"]
[null,"Nombre del proyecto subvencionado",{"$f":"IF('Relación de gastos'!C5:D5<>\"\",'Relación de gastos'!C5:D5,\"\")","v":""},null,"Periodo de ejecución del proyecto subvencionado:",null,null,{"$f":"IF(+'Relación de gastos'!H5=\"\",\"\",+'Relación de gastos'!H5)","v":""},"a",{"$f":"IF(+'Relación de gastos'!K5=\"\",\"\",+'Relación de gastos'!K5)","v":""}]
[]
["Ingresos del proyecto/actividad/servicio subvencionado"]
["Núm. De orden (0)","Concepto del ingreso","Emisor del ingreso",null,"Fecha de cobro\n(dd/mm/aaaa)","Importe","Observaciones"]
[null,null,"NIF","Nombre","(1)","euros"]
["A. Subvención municipal"]
[]
[]
[]
[]
[null,null,null,null,"Subtotal A",{"$f":"SUM(F11:F14)","v":0}]
["B. Subvenciones de otras administraciones"]
[]
[]
[]
[]
[null,null,null,null,"Subtotal B",{"$f":"SUM(F17:F20)","v":0}]
["C. Subvenciones de entes privados"]
[]
[]
[]
[]
[null,null,null,null,"Subtotal C",{"$f":"SUM(F23:F26)","v":0}]
["D. Recursos propios de la organización aplicados al proyecto"]
[]
[]
[]
[]
[null,null,null,null,"Subtotal D",{"$f":"SUM(F29:F32)","v":0}]
["E. Taquillaje"]
[]
[]
[]
[]
[null,null,null,null,"Subtotal E",{"$f":"SUM(F35:F38)","v":0}]
["F. Cuotas de inscripción"]
[]
[]
[]
[]
[null,null,null,null,"Subtotal F",{"$f":"SUM(F41:F44)","v":0}]
["G. Venta de Productos"]
[]
[]
[]
[]
[null,null,null,null,"Subtotal G",{"$f":"SUM(F47:F50)","v":0}]
["H. Publicidad y/o Esponsorización"]
[]
[]
[]
[]
[null,null,null,null,"Subtotal H",{"$f":"SUM(F53:F56)","v":0}]
["I. Otros ingresos"]
[]
[]
[]
[]
[]
[]
[]
[null,null,null,null,"Subtotal I",{"$f":"SUM(F59:F65)","v":0}]
["Total INGRESOS",null,null,null,"TOTAL",{"$f":"+F15+F21+F27+F33+F39+F45+F51+F57+F66","v":0}]
[]
[null,"Nota:"]
[null,"(0) El número de orden debe ser correlativo empezando por el número A1, A2, A3, B4, etc."]
[null,"(1) En caso de que el ingreso esté pendiente cobro, indicar \"P. Cobro\""]

{"sheet":"Gastos e ingresos","index":2,"n_rows":97,"n_cols":11,"rows_kept":97,"cut":false,"hidden":false,"merged":[[42,0,42,10],[43,0,43,10],[44,0,44,10],[47,0,47,10],[45,0,45,10],[46,0,46,10],[4,2,4,3],[4,5,4,6],[5,2,5,3],[5,5,5,6],[41,0,41,10],[9,0,9,1],[9,6,9,7],[6,5,6,7],[25,0,26,1],[25,2,26,2],[25,3,26,3],[6,2,6,3],[10,8,11,8],[10,9,11,9],[10,0,11,1],[10,2,11,2],[10,3,11,3],[10,6,11,7],[28,8,28,9],[36,7,38,10],[27,6,27,7],[28,6,28,7]]}
[]
[]
["Estado de los gastos realizados y de los ingresos obtenidos para la ejecución de la actividad subvencionada (*)"]
[]
["Nombre de la persona física/jurídica beneficiaria:        ","Nombre de la persona física/jurídica beneficiaria:        ",{"$f":"IF('Relación de gastos'!C3:D3<>\"\",'Relación de gastos'!C3:D3,\"\")","v":""},null,null,"Importe del coste total del proyecto:",null,{"$f":"'Relación de ingresos'!H3","v":""},"euros"]
["Código de subvención","Código de subvención",{"$f":"IF('Relación de gastos'!C4:D4<>\"\",'Relación de gastos'!C4:D4,\"\")","v":""},null,null,"Importe de la subvención otorgada:",null,{"$f":"'Relación de ingresos'!H4","v":""},"euros"]
["Nombre del proyecto subvencionado","Nombre del proyecto subvencionado",{"$f":"IF('Relación de gastos'!C5:D5<>\"\",'Relación de gastos'!C5:D5,\"\")","v":""},null,null,"Periodo de ejecución del proyecto subvencionado:",null,null,{"$f":"'Relación de ingresos'!H5","v":""},"a",{"$f":"'Relación de ingresos'!J5","v":""}]
[]
["SUBVENCIONES PARA EL FORTALECIMIENTO DE LA ECONOMÍA SOCIAL Y SOLIDARIA Y LA INTERCOOPERACIÓN 2023"]
["GASTOS PREVISTOS",null,"importe en euros",null,null,null,"INGRESOS PREVISTOS",null,"importe en euros"]
["Gastos directos\n(aquellas que se identifican directamente con el proyecto)",null,"Previsión inicial o reformulada ya aprobada (1)","Gastos realizados (2)","Diferencia\n",null,"Ingresos previstos",null,"Previsión inicial (1)","Ingresos obtenidos (3)"]
[null,null,null,null,"(2-1)"]
["Bb1","D1. Retribuciones y seguridad social (régimen general o régimen de autónomos) del personal propio vinculado/da al proyecto (máximo 40% subvención)",null,{"$f":"'Relación de gastos'!H16","v":0},{"$f":"+C13-D13","v":0},null,"A.","Subvención municipal (importe solicitado a la instancia/otorgado)",null,{"$f":"'Relación de ingresos'!F15","v":0}]
[null,"D2.  Trabajos realizados por profesionales y empresas externas directamente vinculadas al proyecto subvencionado",null,{"$f":"'Relación de gastos'!H22","v":0},{"$f":"+C14-D14","v":0},null,"B.","Subvenciones de otras administraciones",null,{"$f":"'Relación de ingresos'!F21","v":0}]
[null,"D3.  Alquiler de bienes muebles/ inmuebles directamente vinculados al proyecto subvencionable (máximo 25% subvención en caso de inmuebles para un nuevo espacio)",null,{"$f":"'Relación de gastos'!H28","v":0},0,null,"C.","Subvenciones de entes privados",null,{"$f":"'Relación de ingresos'!F27","v":0}]
[null,"D4. Adquisición de materiales y bienes consumibles íntegramente imputables al proyecto",null,{"$f":"'Relación de gastos'!H34","v":0},0,null,"D.","Recursos propios de la organización aplicados al proyecto",null,{"$f":"'Relación de ingresos'!F33","v":0}]
[null,"D5. Transporte – mensajería imputables al proyecto",null,{"$f":"'Relación de gastos'!H40","v":0},0,null,"E.","Taquillaje",null,{"$f":"'Relación de ingresos'!F39","v":0}]
[null,"D6. Publicidad y propaganda de las actividades directamente vinculadas al proyecto",null,{"$f":"'Relación de gastos'!H46","v":0},0,null,"F.","Cuotas de inscripción",null,{"$f":"'Relación de ingresos'!F45","v":0}]
[null,"D7.  Alojamiento y dietas, del personal contratado y voluntario, vinculados al proyecto",null,{"$f":"'Relación de gastos'!H52","v":0},0,null,"G.","Venta de Productos",null,{"$f":"'Relación de ingresos'!F51","v":0}]
[null,"D8.  Ayudas al transporte para los/las participantes de los proyectos en caso de que sea necesario de forma justificada",null,{"$f":"'Relación de gastos'!H58","v":0},0,null,"H","Publicidad y/o Esponsorización",null,{"$f":"'Relación de ingresos'!F57","v":0}]
[null," D9. Viajes y desplazamientos imputables a las actividades del proyecto",null,{"$f":"'Relación de gastos'!H64","v":0},0,null,"I.","Otros ingresos",null,{"$f":"'Relación de ingresos'!F66","v":0}]
[null,"D10. Tributos, cuando sean abonados directamente por la persona jurídica o física beneficiaria",null,{"$f":"'Relación de gastos'!H70","v":0},0,null,null,"Total Ingresos",{"$f":"SUM(I13:I21)","v":0},{"$f":"SUM(J13:J21)","v":0}]
[null,"D11. Otros gastos que de forma justificada puedan imputarse directamente al proyecto subvencionable",null,{"$f":"'Relación de gastos'!H76","v":0},0]
[]
[null,"Total Gastos Directos",{"$f":"SUM(C13:C24)","v":0},{"$f":"SUM(D13:D24)","v":0},{"$f":"SUM(E13:E24)","v":0}]
["Gastos indirectos\n(no se pueden asignar directamente al proyecto sin utilizar algún % de asignación)",null,"Previsión inicial o reformulada ya aprobada (1)","Gastos realizados (2)","Diferencia\n"]
[null,null,null,null,"(2-1)"]
["Bb","I.1 Personal de apoyo al proyecto subvencionado (Nóminas y seguridad social)",null,{"$f":"'Relación de gastos'!H84","v":0},{"$f":"+C28-D28","v":0},null,"Ingresos menos gastos ",null,{"$f":"+I22-C39","v":0},{"$f":"+J22-D39","v":0}]
[null,"I2.  Seguros",null,{"$f":"'Relación de gastos'!H90","v":0},0,null,"Desviación de Gastos (4)",null,"Desviación de ingresos (4)"]
[null,"I.3  Amortización",null,{"$f":"'Relación de gastos'!H96","v":0},0,null,"Importe"," % ","Importe","%"]
[null,"I.4  Alquiler de bienes inmuebles",null,{"$f":"'Relación de gastos'!H102","v":0},0,null,{"$f":"D39-C39","v":0},{"$f":"D39/C39","v":{"$error":"#DIV/0!"}},{"$f":"J22-I22","v":0},{"$f":"J22/I22","v":{"$error":"#DIV/0!"}}]
[null,"I.5  Adquisición de materiales y bienes consumibles parcialmente imputables al proyecto",null,{"$f":"'Relación de gastos'!H108","v":0},0,null,null,null,"% subvencionado inicialmente o después de reformulación (5)",{"$f":"I13/I22","v":{"$error":"#DIV/0!"}}]
[null,"I.6  Mantenimiento de edificios y/o instalaciones",null,{"$f":"'Relación de gastos'!H114","v":0},0,null,null,null,"% subvencionado después de justificación (6)",{"$f":"J13/J22","v":{"$error":"#DIV/0!"}}]
[null,"I.7  Comunicaciones (teléfono, correos, conexión a internet)",null,{"$f":"'Relación de gastos'!H120","v":0},0]
[null,"I.8  Gastos financieros",null,{"$f":"'Relación de gastos'!H126","v":0},0]
[null,"I.9  Suministros ",null,{"$f":"'Relación de gastos'!H132","v":0},0]
[null,"I.10 Trabajo realizado por otras empresas, parcialmente imputables al proyecto (limpieza, seguridad...)",null,{"$f":"'Relación de gastos'!H138","v":0},0]
[null,"Total Gastos Indirectos   (Max. 10% subv)",{"$f":"SUM(C28:C37)","v":0},{"$f":"SUM(D28:D37)","v":0},{"$f":"SUM(E28:E37)","v":0}]
[null,"Total Gastos ",{"$f":"+C25+C38","v":0},{"$f":"+D25+D38","v":0},{"$f":"+E38+E25","v":0}]
[]
["Notas:"]
["(*) Las columnas sombreadas en color se irán rellenando automáticamente a partir de los datos introducidos en los documentos de gastos -detalle e ingresos-detalle. Por tanto, no imprima esta hoja hasta haber rellenado los demás."]
["(1) Previsión inicial o reformulación ya aprobada = Se debe indicar la previsión inicial de gastos y de ingresos según lo indicado en el proyecto original en el \"plan de viabilidad económica del proyecto - presupuesto general\" . En caso de que ya se haya aprobado una reformulación, deben indicarse las cantidades reformuladas."]
["(2) Gastos reales = Coste real total del proyecto subvencionado. Automáticamente se introducirán los subtotales de los gastos relacionados en la hoja Gastos-detalle."]
["(3) Ingresos reales = Total de ingresos obtenidos para la realización del proyecto subvencionado. Automáticamente se introducirán los subtotales de los ingresos relacionados en la hoja Ingresos-detalle"]
["(4) Desviación: En el caso de los gastos, la desviación es la diferencia entre gastos reales y la previsión inicial de gastos; y en el caso de ingresos, la diferencia entre los ingresos reales y la previsión inicial de ingresos."]
["(5) % financiación municipal inicial o después de reformulación = porcentaje que suponen las subvenciones municipales (A) respecto del total de ingresos del proyecto subvencionado."]
["(6) % financiación municipal después de justificación = porcentaje que supone la subvención municipal (A) respecto al total de ingresos del proyecto subvencionado. En caso de existir una desviación siempre debe motivarse."]
[]
[]
[]
[]
[]
[]
[]
[]
[]
[]
[]
[]
[]
[]
[]
[]
[]
[]
[]
[]
[]
[]
[]
[]
[]
[]
[]
[]
[]
[]
[]
[]
[]
[]
[]
[]
[]
[]
[]
[]
[]
[]
[]
[]
[]
[]
[]
[]
[null,null,0]